bitfinex/quotes_ETHUSD_20220112
["timestamp","ask_amount","ask_price","bid_price","bid_amount"]
[1642000575450,5.4042,3382.9,3382.5,2.0]
[1642000575648,5.4042,3382.9,3382.6,0.00454739]
[1642000576249,0.7391,3382.8,3382.6,0.00454739]
[1642000576449,1.1651,3382.8,3382.6,0.00454739]
[1642000578055,1.1651,3382.8,3382.6,0.03445835]
[1642000578454,0.426,3382.8,3382.7,4.40397897]
[1642000578657,3.926,3382.8,3382.7,4.40397897]
[1642000579072,4.226,3382.8,3382.7,4.40397897]
[1642000579272,4.526,3382.8,3382.7,0.00397897]
[1642000579674,0.3,3382.7,3382.6,0.00454739]
[1642000579876,4.1,3382.8,3382.6,0.00454739]
[1642000580077,3.5,3382.8,3382.6,0.00454739]
[1642000580477,3.5,3382.8,3382.7,1.31671804]
[1642000580678,0.1182,3384.1,3382.8,7.25]
[1642000580880,6.10293174,3384.3,3382.8,7.25]
[1642000580881,0.89013174,3384.3,3384.0,2.0]
[1642000581079,1.03366805,3384.8,3384.1,0.03184837]
[1642000581278,0.118202,3385.0,3384.4,2.0]
[1642000581485,0.0073895,3384.7,3384.5,0.02110748]
[1642000581682,0.0073895,3384.7,3384.5,1.49829748]
[1642000581882,0.00682108,3384.6,3384.5,1.47719]
[1642000582283,0.00852635,3384.6,3384.5,2.2157811]
[1642000582724,0.00852635,3384.6,3384.5,9.4657811]
[1642000583624,0.00852635,3384.6,3384.5,8.72719]
[1642000586127,0.00852635,3384.6,3384.5,1.47719]
[1642000586775,0.00852635,3384.6,3384.4,2.0]
[1642000587175,0.00625266,3384.5,3384.4,2.0]
[1642000587979,0.00625266,3384.5,3384.1,3.9592]
[1642000587980,0.00819752,3384.4,3384.1,3.9592]
[1642000588181,0.74502266,3384.5,3384.1,0.73875]
[1642000588378,0.00511581,3384.3,3384.1,0.73875]
[1642000588580,0.00568423,3384.4,3384.1,0.73875]
[1642000588782,0.00454738,3384.2,3384.1,0.73875]
[1642000588980,0.00511581,3384.3,3384.1,0.73875]
[1642000589180,0.00454738,3384.2,3384.1,0.73875]
[1642000590230,0.00454738,3384.2,3384.0,4.9548054]
[1642000590618,0.00397896,3384.1,3384.0,4.9548054]
[1642000590919,0.00397896,3384.1,3384.0,4.2160754]
[1642000591118,0.00397896,3384.1,3384.0,5.46357018]
[1642000591620,0.00397896,3384.1,3384.0,4.2160754]
[1642000592619,0.00397896,3384.1,3384.0,5.41472484]
[1642000592827,0.00397896,3384.1,3384.0,4.2160754]
[1642000593026,0.00397896,3384.1,3384.0,2.0]
[1642000594070,0.00397896,3384.1,3384.0,3.32577803]
[1642000594271,0.00397896,3384.1,3384.0,4.44308484]
[1642000594671,0.00397896,3384.1,3384.0,3.32577803]
[1642000598030,0.00397896,3384.1,3384.0,4.80315803]
[1642000600728,0.00397896,3384.1,3384.0,2.0]
[1642000603278,0.00397896,3384.1,3384.0,1.95]
[1642000603676,0.00397896,3384.1,3384.0,3.27035116]
[1642000603877,0.00397896,3384.1,3384.0,4.00910116]
[1642000604478,0.00397896,3384.1,3384.0,3.99410116]
[1642000604881,0.00397896,3384.1,3384.0,2.67375]
[1642000605328,0.00397896,3384.1,3384.0,1.935]
[1642000614721,0.00397896,3384.1,3384.0,2.67377]
[1642000617471,0.00397896,3384.1,3384.0,8.07377]
[1642000618278,0.1181,3385.0,3384.4,0.7385]
[1642000618477,0.1181,3385.0,3384.5,2.86445233]
[1642000618677,0.00341054,3384.7,3384.5,2.86445233]
[1642000619080,0.00284212,3384.6,3384.5,2.86445233]
[1642000619277,0.00284212,3384.6,3384.5,4.79945233]
[1642000620081,0.50957112,3385.2,3385.1,1.1783768]
[1642000620328,0.4181,3385.5,3385.2,0.7385]
[1642000620527,1.8951,3385.5,3385.2,0.7385]
[1642000621429,1.8951,3385.5,3385.2,1.477]
[1642000622027,0.85658,3385.5,3385.2,1.477]
[1642000622228,0.1181,3385.5,3385.2,1.477]
[1642000622431,0.1181,3385.5,3385.3,0.76965866]
[1642000622630,0.1181,3385.5,3385.3,0.73828]
[1642000623231,0.1181,3385.5,3385.3,1.4766702]
[1642000623830,3.53934582,3386.7,3385.4,7.25]
[1642000623831,0.118151,3386.5,3385.4,7.25]
[1642000624089,0.118151,3386.5,3386.4,1.935]
[1642000624487,0.12895104,3386.5,3386.4,1.935]
[1642000625485,0.42895104,3386.5,3386.4,1.935]
[1642000625686,0.42895104,3386.5,3385.8,1.13886898]
[1642000626086,1.48693162,3386.4,3385.8,1.13886898]
[1642000626289,1.48693162,3386.4,3385.6,6.18327632]
[1642000626290,0.01023162,3386.4,3385.9,1.935]
[1642000626491,0.418151,3386.5,3385.9,1.935]
[1642000626492,0.0096632,3386.3,3385.9,1.935]
[1642000626891,0.00909477,3386.2,3385.9,1.935]
[1642000627090,0.74745477,3386.2,3385.9,1.935]
[1642000627389,0.00852635,3386.1,3385.9,1.935]
[1642000627824,0.73836,3386.2,3385.9,4.67457759]
[1642000627825,0.00795793,3386.0,3385.9,4.67457759]
[1642000629029,0.00795793,3386.0,3385.9,4.79267759]
[1642000629232,0.00795793,3386.0,3385.9,10.34267759]
[1642000629732,0.00795793,3386.0,3385.9,4.79267759]
[1642000631231,0.00795793,3386.0,3385.9,7.64267759]
[1642000631476,0.00795793,3386.0,3385.9,4.79267759]
[1642000632280,0.00795793,3386.0,3385.9,7.99267759]
[1642000633279,1.594591,3386.5,3386.0,7.25]
[1642000633482,1.594591,3386.5,3386.2,0.738093]
[1642000633487,0.118151,3386.5,3386.2,0.738093]
[1642000633682,2.95261,3388.0,3386.4,1.935]
[1642000633683,2.05603864,3387.6,3386.4,1.935]
[1642000633881,2.95261,3388.0,3387.4,3.15331206]
[1642000633882,2.05603864,3387.9,3387.4,3.15331206]
[1642000634081,0.00909477,3387.6,3387.4,1.935]
[1642000634486,0.355,3388.2,3387.4,1.935]
[1642000634487,0.00852635,3387.5,3387.4,1.935]
[1642000634683,0.00852635,3387.5,3387.4,9.02298]
[1642000634885,6.11,3388.5,3387.9,1.37093762]
[1642000634886,0.118097,3388.0,3387.9,1.37093762]
[1642000635338,0.118097,3388.0,3387.9,3.30593762]
[1642000635942,0.118097,3388.0,3387.9,1.935]
[1642000637047,0.118097,3388.0,3387.9,3.3819681]
[1642000638748,0.118097,3388.0,3387.9,1.935]
[1642000638974,0.118097,3388.0,3387.4,3.1545]
[1642000639174,0.73794,3387.8,3387.4,1.2195]
[1642000639378,0.73794,3387.8,3387.6,1.935]
[1642000639577,0.3,3387.7,3387.6,1.935]
[1642000640875,0.01080004,3387.9,3387.7,0.02032198]
[1642000641077,0.01080004,3387.9,3387.6,1.935]
[1642000641279,0.01023162,3387.8,3387.6,1.935]
[1642000641676,0.0096632,3387.7,3387.6,1.935]
[1642000641878,0.0096632,3387.7,3387.6,2.67288]
[1642000642085,0.0096632,3387.7,3387.6,1.935]
[1642000643325,0.0096632,3387.7,3387.0,1.935]
[1642000643326,0.3646632,3387.7,3387.0,1.935]
[1642000643525,4.42812,3388.6,3387.0,1.935]
[1642000643526,2.21393,3388.6,3387.6,1.935]
[1642000643725,0.5,3389.0,3387.0,7.25]
[1642000643726,0.5,3389.0,3388.5,1.935]
[1642000644531,0.5,3389.0,3388.6,5.81080906]
[1642000644734,1.97602033,3388.8,3388.6,2.36635906]
[1642000644931,1.97602033,3388.8,3388.7,0.1179]
[1642000645131,1.97602033,3388.8,3388.7,1.1179]
[1642000645328,1.98227298,3388.8,3388.7,1.1179]
[1642000646131,1.98227298,3388.8,3388.7,5.4635]
[1642000646585,1.98227298,3388.8,3388.7,1.8635]
[1642000646780,1.98227298,3388.8,3388.7,0.8635]
[1642000647081,1.98227298,3388.8,3388.7,0.7456]
[1642000647285,1.98227298,3388.8,3388.6,2.24845906]
[1642000647683,0.00568423,3388.7,3388.6,2.24845906]
[1642000647883,0.00568423,3388.7,3388.5,2.0529]
[1642000648283,0.00511581,3388.6,3388.5,2.0529]
[1642000649085,1.93113614,3388.8,3388.5,3.30735094]
[1642000649283,1.93113614,3388.8,3388.6,0.05268147]
[1642000649483,0.7377,3388.7,3388.6,0.05268147]
[1642000649684,0.7377,3388.7,3388.5,2.0529]
[1642000650084,1.93113614,3388.8,3388.5,2.0529]
[1642000650929,1.93113614,3388.8,3388.6,1.41299528]
[1642000651330,1.93113614,3388.8,3388.6,2.15064528]
[1642000651533,2.23113614,3388.8,3388.5,1.935]
[1642000651732,3.70659614,3388.8,3388.5,1.935]
[1642000652934,3.70659614,3388.8,3388.6,0.03858361]
[1642000653736,3.40659614,3388.8,3388.6,0.03858361]
[1642000653979,3.40659614,3388.8,3387.9,6.35]
[1642000653980,3.70659614,3388.8,3387.9,6.35]
[1642000654175,3.70659614,3388.8,3387.9,6.2321]
[1642000654176,0.73789,3388.5,3387.9,6.2321]
[1642000654377,0.655,3388.5,3388.0,0.00341054]
[1642000654977,0.355,3388.5,3388.2,1.29407335]
[1642000655376,1.47578,3388.3,3388.2,1.29407335]
[1642000655577,1.77578,3388.3,3388.2,1.29407335]
[1642000655780,1.77578,3388.3,3388.2,1.29634705]
[1642000655978,1.77578,3388.3,3388.2,0.0022737]
[1642000656377,1.77578,3388.3,3388.0,0.00341054]
[1642000657379,1.47578,3388.3,3388.2,1.39781154]
[1642000658033,1.09288,3388.5,3388.2,1.39781154]
[1642000658231,0.73788,3388.5,3388.2,1.39781154]
[1642000658431,0.73788,3388.5,3388.3,0.00170527]
[1642000658839,0.73774,3388.7,3388.4,1.935]
[1642000659033,1.93113614,3388.8,3388.4,1.935]
[1642000659231,1.93113614,3388.8,3388.4,2.6727]
[1642000660531,1.93113614,3388.8,3388.5,0.1179]
[1642000660732,1.93113614,3388.8,3388.6,0.73764]
[1642000661334,1.93113614,3388.8,3388.4,3.41027]
[1642000661573,1.93113614,3388.8,3388.5,0.7376347]
[1642000661776,1.93113614,3388.8,3388.4,1.935]
[1642000662880,0.73776,3388.7,3388.4,1.935]
[1642000663078,0.73776,3388.7,3388.3,0.11960527]
[1642000663079,0.3,3388.6,3388.3,0.11960527]
[1642000663380,0.655,3388.6,3388.4,0.00113685]
[1642000663778,0.955,3388.6,3388.4,0.00113685]
[1642000665078,0.955,3388.6,3388.4,0.02464]
[1642000666024,0.955,3388.6,3388.4,0.00113685]
[1642000666923,0.655,3388.6,3388.4,0.00113685]
[1642000667925,0.355,3388.6,3388.4,0.04165132]
[1642000668127,0.355,3388.6,3388.4,0.00113685]
[1642000668973,0.955,3388.6,3388.4,0.00113685]
[1642000669575,0.355,3388.6,3388.4,0.00113685]
[1642000670076,0.09276,3388.7,3388.4,0.00113685]
[1642000670481,1.93113614,3388.8,3388.4,0.00113685]
[1642000670680,1.93113614,3388.8,3388.6,2.6726876]
[1642000671778,1.93113614,3388.8,3388.6,3.4103776]
[1642000671981,1.93113614,3388.8,3388.6,3.5282776]
[1642000672181,1.93113614,3388.8,3388.6,3.4103776]
[1642000672581,1.93113614,3388.8,3388.6,3.5282776]
[1642000673527,1.93113614,3388.8,3388.6,2.7905876]
[1642000673929,2.08634705,3388.7,3388.6,2.0529]
[1642000674128,2.12269992,3388.7,3388.6,2.0529]
[1642000674328,1.93113614,3388.8,3388.6,2.0529]
[1642000674729,5.14090241,3388.7,3388.6,0.1179]
[1642000674931,5.14090241,3388.7,3388.4,0.00113685]
[1642000674932,0.01275579,3388.6,3388.4,0.00113685]
[1642000675130,5.49590241,3388.7,3388.4,0.00113685]
[1642000675131,7.605,3388.5,3388.4,0.00113685]
[1642000675329,7.605,3388.5,3388.0,0.00341054]
[1642000675330,9.90564161,3388.5,3388.0,0.00341054]
[1642000675531,10.20564161,3388.5,3388.0,0.00341054]
[1642000675935,0.738,3388.3,3388.0,0.00341054]
[1642000676231,2.42688696,3388.2,3388.0,0.00341054]
[1642000676472,1.12592707,3388.2,3388.0,0.00341054]
[1642000676672,3.15332533,3388.2,3388.0,0.00341054]
[1642000677074,1.12592707,3388.2,3388.0,0.00341054]
[1642000678584,4.64782887,3388.2,3388.0,0.00341054]
[1642000678784,7.83244598,3388.1,3388.0,0.00341054]
[1642000678982,8.18744598,3388.1,3388.0,0.00341054]
[1642000679180,8.18744598,3388.1,3387.7,0.00511581]
[1642000679380,8.18744598,3388.1,3387.2,0.1179]
[1642000679381,0.73816,3388.0,3387.5,0.00625266]
[1642000679584,0.73816,3388.0,3387.4,0.00682108]
[1642000679585,2.65647403,3387.9,3387.4,0.00682108]
[1642000679781,1.47626,3387.8,3387.2,0.00795793]
[1642000679983,2.56493547,3387.7,3387.2,0.00795793]
[1642000680221,2.86493547,3387.7,3387.2,0.00795793]
[1642000680421,3.90310547,3387.7,3387.2,0.00795793]
[1642000680622,0.73816,3387.5,3386.7,0.01080005]
[1642000680824,0.73816,3387.5,3387.1,0.00852635]
[1642000680825,1.47651,3387.3,3387.1,0.00852635]
[1642000681023,5.60018932,3387.2,3386.5,0.0119369]
[1642000681722,2.40018932,3387.2,3386.7,0.7382335]
[1642000681924,2.70018932,3387.2,3386.7,0.7382335]
[1642000682123,1.4765,3387.1,3386.8,0.01023163]
[1642000682526,2.03182749,3387.0,3386.8,0.01023163]
[1642000682723,2.33182749,3387.0,3386.8,0.01023163]
[1642000682927,7.43407961,3386.9,3386.6,0.01136847]
[1642000683128,3.27744961,3386.9,3386.4,0.01250532]
[1642000683329,0.3,3386.7,3386.3,0.01307374]
[1642000683528,2.93662336,3386.6,3386.3,0.01307374]
[1642000683729,3.92924803,3386.6,3386.1,0.01421059]
[1642000684007,0.3,3386.5,3386.1,0.01421059]
[1642000684172,0.355,3386.4,3386.1,0.01421059]
[1642000684576,0.355,3386.4,3385.9,0.01534744]
[1642000684776,1.8318,3386.4,3385.9,0.01534744]
[1642000685477,0.7384,3386.3,3385.9,0.01534744]
[1642000685677,1.0934,3386.3,3386.0,0.7383668]
[1642000686076,1.3934,3386.3,3386.1,0.01421059]
[1642000686680,1.3934,3386.3,3385.8,0.01591586]
[1642000686881,0.73838,3386.2,3385.8,0.01591586]
[1642000687282,0.73838,3386.2,3385.7,0.13458428]
[1642000687731,0.73838,3386.2,3385.8,0.01591586]
[1642000688133,0.73838,3386.2,3385.5,0.01762113]
[1642000688334,0.73838,3386.2,3385.4,1.95318955]
[1642000688534,0.73838,3386.2,3385.5,0.01762113]
[1642000688535,0.3,3386.1,3385.5,0.01762113]
[1642000688834,1.83179,3386.3,3385.5,0.01762113]
[1642000688835,0.73845,3385.8,3385.5,0.01762113]
[1642000690236,0.73845,3385.8,3385.6,1.49290452]
[1642000690440,0.73845,3385.8,3385.6,1.37480452]
[1642000690638,0.73837,3386.2,3385.8,0.03397912]
[1642000690841,0.73837,3386.2,3385.9,1.935]
[1642000691043,0.355,3386.3,3385.9,1.95034744]
[1642000691241,0.355,3386.3,3386.0,0.01477901]
[1642000692483,0.355,3386.3,3386.1,1.28999309]
[1642000692690,6.05800983,3387.1,3386.1,1.40809309]
[1642000692691,3.7439,3387.1,3386.1,1.40809309]
[1642000692887,4.2731,3387.6,3386.2,0.01364217]
[1642000692888,0.355,3387.6,3386.2,0.01364217]
[1642000693087,0.355,3387.6,3386.3,0.15047606]
[1642000693289,0.7381,3387.4,3386.3,0.15047606]
[1642000693488,0.7381,3387.4,3386.2,2.41621021]
[1642000693489,0.7381,3387.4,3387.2,1.1055885]
[1642000693690,0.00625266,3387.3,3387.0,2.673094]
[1642000694089,0.00568424,3387.2,3387.0,2.673094]
[1642000694489,0.00511582,3387.1,3387.0,2.673094]
[1642000695098,0.00511582,3387.1,3387.0,1.04795092]
[1642000695726,0.00511582,3387.1,3386.8,0.1179]
[1642000695927,0.00511582,3387.1,3386.7,1.4761448]
[1642000696126,0.7381,3387.4,3386.7,1.4761448]
[1642000696127,0.74274739,3387.0,3386.7,1.4761448]
[1642000696328,0.74274739,3387.0,3386.5,0.1181]
[1642000696527,0.00397897,3386.9,3386.6,0.7381865]
[1642000696930,0.00341054,3386.8,3386.5,0.70737758]
[1642000697326,0.00284212,3386.7,3386.5,0.70737758]
[1642000697527,0.00284212,3386.7,3386.5,0.1181]
[1642000697726,0.0022737,3386.6,3386.3,2.60572]
[1642000697926,1.47645,3387.2,3386.3,6.57632]
[1642000698128,0.3,3387.1,3386.4,0.00113685]
[1642000698330,0.00113684,3386.8,3386.4,0.00113685]
[1642000698985,0.00113684,3386.8,3386.2,0.0022737]
[1642000699172,0.00113684,3386.8,3386.1,0.00284212]
[1642000699374,0.00113684,3386.8,3386.3,0.00170527]
[1642000699576,1.47664,3386.7,3386.0,4.12230743]
[1642000699774,0.73832,3386.4,3386.1,0.00113685]
[1642000700373,0.73832,3386.4,3386.0,0.00170527]
[1642000701777,0.73832,3386.4,3385.8,2.27138907]
[1642000701975,0.00170527,3386.3,3385.9,0.0022737]
[1642000702278,0.00113684,3386.2,3385.9,0.0022737]
[1642000702722,0.74005527,3386.3,3385.9,0.0022737]
[1642000703127,0.00113684,3386.2,3385.9,0.0022737]
[1642000703328,0.48948684,3386.3,3385.9,0.0022737]
[1642000703627,0.48948684,3386.3,3385.9,0.00170527]
[1642000704328,0.48948684,3386.3,3386.1,1.04795092]
[1642000704528,1.47674,3386.5,3386.1,1.04795092]
[1642000704529,0.73824,3386.5,3386.1,1.04795092]
[1642000704930,0.73824,3386.5,3386.1,0.16069048]
[1642000704931,0.00113685,3386.4,3386.1,0.16069048]
[1642000705527,0.73941685,3386.4,3386.1,0.16069048]
[1642000705728,0.73941685,3386.4,3385.9,0.00170527]
[1642000705928,0.00113685,3386.4,3385.9,0.00170527]
[1642000706329,0.00113685,3386.4,3385.7,0.94925491]
[1642000706588,0.7405937,3386.3,3385.8,0.1181]
[1642000706792,0.7405937,3386.3,3385.6,0.1181]
[1642000706991,0.00170527,3386.2,3385.5,0.1181]
[1642000707189,0.00170527,3386.2,3385.7,0.00113684]
[1642000707390,0.00113685,3386.1,3385.7,0.00113684]
[1642000707594,0.73842,3385.9,3385.7,0.00113684]
[1642000707789,0.73842,3385.9,3385.1,0.1181]
[1642000707790,7.25,3385.7,3385.1,0.1181]
[1642000707993,7.25,3385.7,3384.0,9.0244]
[1642000707994,0.88732457,3385.1,3384.0,9.0244]
[1642000708191,0.88732457,3385.1,3384.0,5.0999]
[1642000708192,0.355,3385.0,3384.0,5.0999]
[1642000708389,0.1181,3384.9,3384.0,5.0999]
[1642000708592,0.355,3384.8,3384.0,5.0999]
[1642000708792,0.73866,3384.5,3384.3,1.2474781]
[1642000708996,0.73866,3384.5,3384.0,5.0999]
[1642000708997,0.1181,3385.3,3384.2,1.49287019]
[1642000709194,0.1181,3385.5,3384.4,0.00738951]
[1642000709594,0.1181,3385.5,3384.4,0.74595951]
[1642000710111,0.1181,3385.5,3385.4,7.07112722]
[1642000710531,0.1181,3385.5,3385.4,6.18536355]
[1642000711732,0.1181,3385.5,3385.4,6.92375355]
[1642000712533,0.1181,3385.5,3385.4,8.939821]
[1642000712737,0.1181,3385.5,3385.4,8.98375355]
[1642000713142,0.00113685,3386.1,3385.4,8.98375355]
[1642000713143,0.00113685,3386.1,3385.4,9.98375355]
[1642000713335,0.00113685,3386.1,3385.7,0.7382391]
[1642000713538,0.00170527,3386.0,3385.8,0.73831]
[1642000713990,0.00113684,3385.9,3385.8,0.73831]
[1642000714175,0.00113684,3385.9,3385.6,0.73824]
[1642000714375,0.00113684,3385.9,3385.5,3.47579543]
[1642000714575,0.00113684,3385.9,3385.6,0.73835]
[1642000714775,0.00113684,3385.9,3385.5,1.14833685]
[1642000715576,0.73843,3385.8,3385.5,1.14833685]
[1642000715874,0.73843,3385.8,3385.5,0.00113685]
[1642000716275,0.73843,3385.8,3385.4,0.00170527]
[1642000716676,0.73843,3385.8,3384.9,9.27215]
[1642000716677,1.09352,3385.7,3385.2,0.00284212]
[1642000716877,1.09352,3385.7,3385.0,0.00397897]
[1642000717076,1.39352,3385.7,3385.0,0.00397897]
[1642000717477,0.655,3385.7,3385.0,0.00397897]
[1642000717726,0.655,3385.7,3384.9,3.81137545]
[1642000717934,0.00341054,3385.6,3384.9,3.81137545]
[1642000718331,0.00284212,3385.5,3384.9,3.81137545]
[1642000718735,0.0022737,3385.4,3384.9,3.81137545]
[1642000719134,0.655,3385.7,3384.9,2.47943717]
[1642000719135,0.74029527,3385.3,3384.9,2.47943717]
[1642000719334,0.74029527,3385.3,3384.7,1.47701]
[1642000719535,0.30113685,3385.2,3384.7,1.47701]
[1642000719733,0.41923685,3385.2,3384.8,0.00113684]
[1642000719936,0.30113685,3385.2,3384.7,0.59059913]
[1642000720134,0.00170527,3385.1,3384.7,0.59059913]
[1642000720541,0.00113684,3385.0,3384.8,1.48766063]
[1642000720737,0.00113684,3385.0,3384.8,1.50751512]
[1642000720937,0.3,3385.1,3384.8,1.50751512]
[1642000721240,0.00113684,3385.0,3384.8,2.24609512]
[1642000721679,0.00170527,3385.1,3384.8,3.65835039]
[1642000721879,0.00170527,3385.1,3384.9,0.01994306]
[1642000722079,0.00113684,3385.0,3384.8,3.65835039]
[1642000722484,0.00170527,3385.1,3384.8,3.65835039]
[1642000722885,0.00113684,3385.0,3384.8,2.77070027]
[1642000723286,0.00170527,3385.1,3384.8,2.77070027]
[1642000723786,0.00113684,3385.0,3384.8,2.77070027]
[1642000724189,0.00170527,3385.1,3384.8,2.77070027]
[1642000724586,0.00113684,3385.0,3384.8,2.77070027]
[1642000724787,0.00113684,3385.0,3384.8,1.88305015]
[1642000724989,0.00170527,3385.1,3384.9,1.44248513]
[1642000725425,0.00113684,3385.0,3384.9,1.44248513]
[1642000726725,0.00113684,3385.0,3384.9,0.55483501]
[1642000727530,0.00113684,3385.0,3384.8,2.15084527]
[1642000727731,0.00113684,3385.0,3384.8,1.41225527]
[1642000727732,0.355,3384.9,3384.8,1.41225527]
[1642000728137,0.355,3384.9,3384.8,0.52460515]
[1642000729177,0.355,3384.9,3384.4,5.1122]
[1642000729380,0.355,3384.9,3384.3,2.95465]
[1642000729576,0.355,3384.9,3384.5,0.00170527]
[1642000729577,0.00664647,3384.8,3384.5,0.00170527]
[1642000729777,0.355,3384.9,3384.5,0.00170527]
[1642000729977,0.355,3384.9,3384.6,0.738673]
[1642000730183,0.355,3384.9,3384.6,2.2506429]
[1642000730378,0.355,3384.9,3384.6,3.57093477]
[1642000730578,0.355,3384.9,3384.7,0.73869]
[1642000731180,0.355,3384.9,3384.5,0.00170527]
[1642000731783,0.355,3384.9,3384.3,2.06870608]
[1642000731784,2.9,3384.8,3384.3,2.06870608]
[1642000731983,0.00170527,3384.8,3384.3,2.06870608]
[1642000732185,0.00113684,3384.7,3384.4,1.22986915]
[1642000732584,0.00170527,3384.8,3384.3,3.36620388]
[1642000732835,0.11980527,3384.8,3384.3,3.36620388]
[1642000733034,0.00113684,3384.7,3384.3,3.36620388]
[1642000733439,0.00113684,3384.7,3384.3,2.47839089]
[1642000734234,0.00113684,3384.7,3384.3,1.18089309]
[1642000734635,0.00113684,3384.7,3384.3,2.65823909]
[1642000734836,0.355,3384.6,3384.3,2.65823909]
[1642000735038,0.355,3384.6,3384.1,1.4774749]
[1642000735235,0.4731,3384.6,3384.1,1.4774749]
[1642000735434,0.4731,3384.6,3384.2,0.00170528]
[1642000735635,6.7,3384.5,3384.1,1.22918018]
[1642000735835,0.355,3384.4,3384.1,1.22918018]
[1642000736040,0.35613685,3384.4,3384.0,1.47743]
[1642000736483,0.31977585,3384.4,3384.0,1.47743]
[1642000737478,1.98280295,3384.3,3384.0,0.58959599]
[1642000737678,0.355,3384.2,3384.0,0.58959599]
[1642000737885,0.355,3384.1,3384.0,0.58959599]
[1642000738284,0.355,3384.1,3384.0,0.59073283]
[1642000740225,0.355,3384.1,3384.0,0.00113684]
[1642000740428,0.355,3384.1,3383.8,0.6196886]
[1642000740624,0.355,3384.1,3383.7,1.4776]
[1642000741026,0.355,3384.1,3383.8,0.00113685]
[1642000741631,0.355,3384.1,3383.9,1.32588964]
[1642000742028,0.355,3384.1,3383.9,0.4378743]
[1642000742228,0.355,3384.1,3383.8,0.00113685]
[1642000743632,0.355,3384.1,3383.9,0.77178923]
[1642000743834,0.355,3384.1,3383.9,0.7388268]
[1642000744980,0.355,3384.1,3383.9,1.4776168]
[1642000745382,0.355,3384.1,3383.9,0.58956465]
[1642000746790,0.355,3384.1,3383.9,2.06716145]
[1642000747087,0.355,3384.1,3383.9,1.17924335]
[1642000748130,0.355,3384.1,3383.9,0.44047335]
[1642000749332,0.355,3384.1,3383.6,2.55565015]
[1642000749533,0.00113685,3384.0,3383.6,1.28119851]
[1642000750536,0.00113685,3384.0,3383.7,0.73885]
[1642000750935,0.00113685,3384.0,3383.6,2.25480947]
[1642000751579,0.00113685,3384.0,3383.7,1.4776872]
[1642000751780,0.00113685,3384.0,3383.8,0.76350283]
[1642000751979,0.00113685,3384.0,3383.8,0.7388]
[1642000752579,0.00113685,3384.0,3383.7,1.32849551]
[1642000753579,0.00113685,3384.0,3383.8,0.73882]
[1642000754779,0.355,3384.1,3383.7,5.87849551]
[1642000754780,0.25613685,3384.1,3383.7,5.87849551]
[1642000754981,0.25613685,3384.1,3383.7,1.32849551]
[1642000755529,0.25613685,3384.1,3383.7,0.44044862]
[1642000756335,0.25613685,3384.1,3383.7,1.17928582]
[1642000756741,0.25613685,3384.1,3383.7,1.91811582]
[1642000757136,0.25613685,3384.1,3383.7,1.03001898]
[1642000757736,0.25613685,3384.1,3383.7,1.76885618]
[1642000758541,0.25613685,3384.1,3383.5,1.47767]
[1642000758740,0.25613685,3384.1,3383.5,0.58965203]
[1642000758994,0.25613685,3384.1,3383.6,0.0022737]
[1642000759581,0.4182,3384.4,3383.6,0.0022737]
[1642000759582,2.35983585,3384.4,3383.6,0.0022737]
[1642000759782,0.355,3384.3,3383.6,0.0022737]
[1642000759984,0.1182,3384.2,3383.6,0.0022737]
[1642000760184,0.355,3384.1,3383.6,0.0022737]
[1642000760685,0.73892,3384.0,3383.6,0.0022737]
[1642000760889,0.355,3383.9,3383.6,0.0022737]
[1642000761996,0.655,3383.9,3383.6,0.0022737]
[1642000762189,1.21213,3383.9,3383.6,0.0022737]
[1642000762391,1.09393,3383.9,3383.6,0.0022737]
[1642000762589,1.09393,3383.9,3383.4,0.00341054]
[1642000764739,1.96987951,3383.8,3383.5,0.73889]
[1642000764938,0.1182,3384.1,3383.5,0.73889]
[1642000764939,0.355,3383.7,3383.5,0.73889]
[1642000765140,0.355,3383.6,3383.3,0.59318154]
[1642000765841,0.355,3383.6,3383.5,0.73889]
[1642000766247,0.35613684,3383.6,3383.5,0.73889]
[1642000766689,0.35613684,3383.6,3383.3,0.4439747]
[1642000766889,0.35613684,3383.6,3383.2,4.30917357]
[1642000767095,0.35613684,3383.6,3383.4,1.4777678]
[1642000768297,0.35613684,3383.6,3383.4,1.3777678]
[1642000768596,0.35613684,3383.6,3383.5,0.73889]
[1642000769998,0.31176799,3383.6,3383.5,0.73889]
[1642000770232,0.31176799,3383.6,3383.4,1.22856133]
[1642000770436,0.31176799,3383.6,3383.4,0.48968133]
[1642000770836,0.31176799,3383.6,3383.2,2.9556532]
[1642000771131,0.31176799,3383.6,3383.2,1.23363552]
[1642000771530,0.31176799,3383.6,3383.2,0.34545454]
[1642000772437,0.31176799,3383.6,3383.3,0.73901]
[1642000773036,0.31176799,3383.6,3383.0,5.213593]
[1642000773235,0.31176799,3383.6,3383.0,1.467093]
[1642000773437,0.01610444,3383.5,3383.1,0.00170527]
[1642000773638,0.355,3383.4,3383.1,0.00170527]
[1642000773837,0.355,3383.3,3383.2,0.73901]
[1642000774080,0.355,3383.3,3383.1,0.00170527]
[1642000774281,0.355,3383.3,3383.2,0.00113685]
[1642000775481,1.12705266,3383.3,3383.2,0.00113685]
[1642000776787,1.12705266,3383.3,3383.0,1.467093]
[1642000776788,1.12705266,3383.3,3383.0,0.58013038]
[1642000778035,1.12705266,3383.3,3383.0,1.92046231]
[1642000778235,0.77205266,3383.3,3383.0,1.92046231]
[1642000778434,0.77205266,3383.3,3383.1,0.7388]
[1642000778635,0.77205266,3383.3,3383.0,2.51001502]
[1642000779435,0.77205266,3383.3,3383.1,1.9244444]
[1642000779637,0.77205266,3383.3,3383.1,2.6633844]
[1642000780142,0.77205266,3383.3,3383.1,0.58974325]
[1642000781582,0.77205266,3383.3,3383.2,1.29337632]
[1642000782579,0.77205266,3383.3,3383.1,0.58974325]
[1642000783182,0.77205266,3383.3,3383.0,2.34913448]
[1642000783386,0.0174506,3383.2,3383.0,2.34913448]
[1642000783586,0.0174506,3383.2,3383.0,1.61020868]
[1642000783783,0.77205266,3383.3,3383.0,0.13248868]
[1642000784187,0.355,3383.2,3382.6,3.6365]
[1642000784384,0.355,3383.2,3382.8,0.73909]
[1642000785233,0.355,3383.2,3382.5,2.49478631]
[1642000785234,5.58909,3383.1,3382.5,2.49478631]